bitfinex/quotes_ETHUSD_20251122
["timestamp","ask_amount","ask_price","bid_price","bid_amount"]
[1763822380961,0.4663,2753.8,2753.0,0.101]
[1763822381147,0.3444,2753.1,2753.0,0.001]
[1763822381332,0.4684,2753.1,2753.0,0.001]
[1763822381528,0.9335,2753.1,2753.0,0.001]
[1763822382757,0.8095,2753.1,2753.0,0.001]
[1763822382946,0.124,2753.1,2753.0,0.001]
[1763822383154,0.4651,2753.5,2753.0,0.001]
[1763822383469,0.124,2753.4,2753.1,0.1]
[1763822384066,0.4663,2753.8,2753.1,0.1]
[1763822384067,0.4663,2753.8,2753.2,3.63213714]
[1763822384235,0.124,2753.7,2753.1,0.1]
[1763822384441,0.124,2753.7,2753.2,0.37333142]
[1763822384657,0.5903,2753.7,2753.0,0.001]
[1763822384857,0.3444,2753.1,2753.0,0.001]
[1763822385171,0.4684,2753.1,2753.0,0.001]
[1763822386282,0.124,2753.2,2753.1,0.1]
[1763822386658,0.4663,2753.7,2753.1,0.1]
[1763822386853,0.124,2753.6,2753.1,0.1]
[1763822387879,0.5903,2753.6,2753.1,0.1]
[1763822388091,0.124,2753.6,2753.0,3.63328327]
[1763822388304,0.4663,2753.5,2753.1,0.72658156]
[1763822388495,0.3444,2753.1,2753.0,0.001]
[1763822389094,0.8095,2753.1,2753.0,0.001]
[1763822391487,0.3444,2753.1,2753.0,0.001]
[1763822391793,0.8095,2753.1,2753.0,0.001]
[1763822392585,0.3444,2753.1,2753.0,0.001]
[1763822392787,0.8095,2753.1,2753.0,0.001]
[1763822393306,0.4684,2753.1,2752.5,0.001]
[1763822393602,0.4785,2752.4,2752.0,0.001]
[1763822393777,0.0033,2752.1,2752.0,0.001]
[1763822394277,0.1273,2752.1,2752.0,0.001]
[1763822394495,0.5936,2752.1,2752.0,0.001]
[1763822395227,0.0023,2751.5,2750.3,0.2877]
[1763822395426,0.4738,2751.1,2750.4,0.39235824]
[1763822395793,0.8103,2751.1,2750.3,0.2877]
[1763822396103,0.125,2751.0,2750.3,0.3877]
[1763822396278,0.4615,2751.0,2750.3,0.3877]
[1763822396484,0.1821,2750.9,2750.3,0.3877]
[1763822396715,0.1821,2750.9,2750.3,4.02365825]
[1763822397018,0.125,2750.8,2750.4,0.86597444]
[1763822397214,0.5913,2750.8,2750.3,0.2877]
[1763822398225,0.4663,2750.7,2750.3,0.2877]
[1763822398737,0.3456,2750.4,2750.3,0.2877]
[1763822400314,0.1821,2750.9,2750.3,0.7692]
[1763822400509,0.1821,2751.2,2750.3,8.04110966]
[1763822400711,0.125,2751.1,2750.4,0.90411097]
[1763822401009,0.5913,2751.1,2750.4,0.80411097]
[1763822401209,0.5913,2751.1,2750.3,0.2877]
[1763822401416,0.4663,2751.0,2750.3,0.2877]
[1763822401787,0.1821,2750.9,2750.3,0.2877]
[1763822402225,0.4663,2750.8,2750.3,0.2877]
[1763822402432,0.3456,2750.4,2750.3,0.2877]
[1763822402733,0.125,2750.4,2750.3,0.2877]
[1763822403555,0.4663,2750.8,2750.3,0.2877]
[1763822403904,0.125,2750.7,2750.3,0.2877]
[1763822404605,0.5913,2750.7,2750.3,0.2877]
[1763822404806,0.125,2750.6,2750.3,0.2877]
[1763822405011,0.4785,2750.4,2750.3,0.2877]
[1763822405396,0.812,2750.4,2750.3,0.2877]
[1763822406630,0.812,2750.4,2750.3,0.2887]
[1763822406993,0.4785,2750.4,2750.3,0.2887]
[1763822407199,0.5983,2750.4,2750.3,0.2887]
[1763822408514,0.937,2750.4,2750.3,0.2887]
[1763822408716,0.1821,2750.9,2750.3,0.769]
[1763822408905,0.125,2750.5,2750.3,0.769]
[1763822409092,0.1821,2751.2,2750.3,0.769]
[1763822409093,0.1821,2751.2,2750.3,8.4999776]
[1763822409317,0.125,2751.1,2750.5,0.1]
[1763822409695,0.195,2751.5,2750.6,0.0363557]
[1763822409913,0.125,2751.4,2750.3,8.0196776]
[1763822410101,0.6139,2751.4,2750.4,0.1]
[1763822410307,0.6139,2751.4,2750.5,0.81196776]
[1763822410526,0.6139,2751.4,2750.5,0.91196776]
[1763822410733,0.125,2751.4,2750.5,4.54763044]
[1763822410929,0.125,2751.4,2750.5,8.18333303]
[1763822411226,0.125,2751.4,2750.7,0.1]
[1763822411427,0.6839,2752.0,2750.7,0.1]
[1763822411629,0.125,2751.7,2751.1,0.1]
[1763822411808,0.125,2751.7,2751.1,0.2855]
[1763822412594,0.125,2751.7,2751.3,0.1]
[1763822412831,0.125,2751.7,2751.3,3.7346093]
[1763822412996,0.125,2751.7,2751.3,4.2084093]
[1763822413600,0.195,2752.2,2751.6,0.4803]
[1763822413799,0.125,2752.1,2751.6,0.1]
[1763822413998,0.125,2752.1,2751.4,0.5738]
[1763822415011,0.125,2752.1,2751.4,4.20827824]
[1763822415910,0.125,2752.1,2751.4,3.63447824]
[1763822416649,0.195,2752.5,2751.5,0.5738]
[1763822416817,0.125,2752.4,2751.8,0.1]
[1763822417633,0.125,2752.4,2751.8,3.73392554]
[1763822417950,0.125,2752.3,2751.8,3.73392554]
[1763822418526,0.125,2752.3,2751.8,4.20772554]
[1763822419349,0.125,2752.3,2751.8,0.1]
[1763822419537,0.4801,2751.9,2751.3,0.90699264]
[1763822419846,0.4801,2751.9,2751.3,0.53010702]
[1763822420856,0.4801,2751.9,2751.2,0.5738]
[1763822421050,0.4801,2751.9,2751.1,0.1855]
[1763822421227,0.4801,2751.9,2751.2,3.63477755]
[1763822421432,0.4801,2751.9,2751.3,0.1]
[1763822421734,0.4868,2751.8,2751.0,3.63499332]
[1763822421933,0.125,2751.7,2750.9,3.63514232]
[1763822422187,0.125,2751.7,2750.8,0.5738]
[1763822422387,0.4889,2751.6,2750.8,0.5738]
[1763822422711,0.4889,2751.6,2750.4,4.10963478]
[1763822423013,0.405504,2751.5,2750.3,0.2887]
[1763822423186,0.405504,2751.5,2750.3,3.92460299]
[1763822423386,0.4889,2751.4,2750.3,0.3887]
[1763822423786,0.405504,2751.3,2750.3,0.2887]
[1763822424190,0.4889,2751.2,2750.3,0.2887]
[1763822424377,0.125,2751.1,2750.3,0.2887]
[1763822424914,0.2851,2750.4,2750.3,0.2887]
[1763822425114,0.125,2750.5,2750.3,0.2887]
[1763822425285,0.125,2750.6,2750.3,4.97876694]
[1763822425612,0.125,2750.9,2750.6,0.1]
[1763822426007,0.125,2750.9,2750.8,0.4803]
[1763822426204,0.125,2751.2,2750.8,0.4803]
[1763822426728,0.125,2751.2,2750.8,0.9541]
[1763822427316,0.4909,2751.7,2751.1,0.6658]
[1763822427508,0.125,2751.6,2751.1,0.6658]
[1763822427725,0.125,2751.6,2751.1,0.7658]
[1763822427940,0.002,2751.7,2751.1,1.2396]
[1763822428094,0.125,2751.5,2751.1,1.2396]
[1763822428923,0.125,2751.5,2751.1,0.7658]
[1763822429092,0.125,2751.5,2751.1,0.6658]
[1763822429291,0.125,2751.5,2751.1,1.1396]
[1763822432327,0.125,2751.5,2751.1,4.77447812]
[1763822432898,0.125,2751.5,2751.1,1.1396]
[1763822433138,0.125,2751.5,2751.1,0.4803]
[1763822433623,0.4889,2751.4,2750.8,0.4738]
[1763822433823,0.4889,2751.4,2750.7,3.63534377]
[1763822434134,0.4889,2751.4,2750.5,3.63569474]
[1763822434332,0.4889,2751.4,2750.5,4.46261068]
[1763822434537,0.4889,2751.4,2750.5,4.93641068]
[1763822434728,0.4889,2751.4,2750.6,0.5738]
[1763822435526,0.4889,2751.4,2750.5,4.46261068]
[1763822435726,0.4889,2751.4,2750.4,3.63581921]
[1763822435727,0.405504,2751.3,2750.3,0.2887]
[1763822436103,0.4692,2751.2,2750.3,0.2887]
[1763822436613,0.405504,2751.1,2750.3,0.2887]
[1763822437167,0.3046,2750.4,2750.3,0.2887]
[1763822437344,0.124,2750.5,2750.3,0.2887]
[1763822439536,0.7675,2750.4,2750.3,0.2887]
[1763822439924,0.124,2750.5,2750.3,0.2887]
[1763822440327,0.4914,2750.4,2750.3,0.2887]
[1763822440711,0.7695,2750.4,2750.3,0.2887]
[1763822441140,0.124,2750.5,2750.3,0.2887]
[1763822441362,0.2824,2750.4,2750.3,0.2887]
[1763822441750,0.7675,2750.4,2750.3,0.2887]
[1763822443971,1.173004,2750.4,2750.3,0.2887]
[1763822444338,7.56700364,2750.4,2750.3,0.2887]
[1763822444701,8.356044,2750.4,2750.3,0.2887]
[1763822444869,0.405504,2750.3,2750.0,0.001]
[1763822445046,0.892604,2750.3,2750.0,0.001]
[1763822445245,0.687904,2750.1,2750.0,0.001]
[1763822445448,6.37883264,2750.1,2750.0,0.001]
[1763822445657,0.90699264,2749.8,2749.7,0.001]
[1763822445860,7.87857564,2749.8,2749.7,0.001]
[1763822446047,8.64607564,2749.8,2749.7,0.001]
[1763822446394,1.31249664,2749.7,2749.0,0.001]
[1763822446595,0.687904,2749.1,2749.0,0.001]
[1763822446873,0.811904,2749.1,2749.0,0.001]
[1763822447086,0.811904,2749.1,2749.0,0.4893]
[1763822447087,0.124,2749.1,2749.0,0.4893]
[1763822447243,0.124,2749.3,2749.0,0.9532]
[1763822447434,0.124,2749.2,2749.0,0.9532]
[1763822447642,0.124,2749.2,2749.0,0.001]
[1763822447881,0.4914,2749.1,2749.0,0.001]
[1763822448377,0.4914,2749.1,2749.0,0.4893]
[1763822448378,0.124,2749.1,2749.0,0.4893]
[1763822448584,0.4871,2749.6,2749.0,0.4893]
[1763822448789,0.002,2751.7,2749.1,0.1876]
[1763822448790,0.124,2749.5,2749.1,0.1876]
[1763822448961,0.124,2749.4,2749.1,0.1876]
[1763822449161,0.124,2749.4,2749.1,0.6515]
[1763822449467,0.124,2749.4,2749.3,0.4883]
[1763822450073,0.124,2749.4,2749.1,0.1876]
[1763822450381,0.124,2749.4,2749.1,0.6515]
[1763822450582,0.124,2749.4,2749.1,0.61661792]
[1763822450882,0.124,2749.4,2749.0,0.001]
[1763822451458,0.4871,2749.7,2749.0,0.001]
[1763822451668,0.124,2749.3,2749.0,0.001]
[1763822452248,0.6111,2749.3,2749.0,0.001]
[1763822452790,0.4914,2749.1,2749.0,0.001]
[1763822454391,0.124,2749.3,2749.0,0.001]
[1763822455105,0.2824,2749.1,2749.0,0.001]
[1763822455856,0.124,2749.3,2749.0,0.001]
[1763822456392,0.6111,2749.3,2749.0,0.001]
[1763822456971,0.2824,2749.1,2749.0,0.001]
[1763822459201,0.124,2749.1,2749.0,0.4893]
[1763822460493,0.002,2749.7,2749.0,0.9532]
[1763822460694,0.124,2749.6,2749.1,0.1876]
[1763822461070,0.124,2749.6,2749.1,0.6515]
[1763822461704,0.002,2749.7,2749.1,0.6515]
[1763822461904,0.002,2749.7,2749.1,0.1876]
[1763822462105,0.002,2749.7,2749.2,0.5639]
[1763822462106,0.124,2749.6,2749.2,0.5639]
[1763822462305,0.124,2749.6,2749.2,0.4639]
[1763822462835,0.002,2749.7,2749.5,0.4883]
[1763822463107,0.126,2749.7,2749.2,4.10130064]
[1763822463396,0.126,2749.7,2749.3,0.4639]
[1763822463600,0.126,2749.7,2749.1,3.82511392]
[1763822463802,0.126,2749.7,2749.2,0.43900139]
[1763822464014,0.4914,2749.2,2749.0,0.001]
[1763822464230,0.0028,2749.1,2749.0,0.001]
[1763822464374,0.126,2749.7,2749.1,0.1876]
[1763822464375,0.002,2749.7,2749.1,0.1876]
[1763822464720,0.124,2749.6,2749.1,0.1876]
[1763822464873,0.124,2749.6,2749.1,0.6515]
[1763822465078,0.002,2749.7,2749.5,0.4883]
[1763822465294,0.002,2749.7,2749.6,0.5883]
[1763822465625,0.002,2749.7,2749.6,1.0522]
[1763822466714,0.002,2749.7,2749.6,0.4883]
[1763822467210,0.002,2749.7,2749.3,3.63721484]
[1763822467211,0.002,2749.7,2749.1,0.61661733]
[1763822467505,0.2756,2749.7,2749.1,0.1876]
[1763822467705,0.2756,2749.7,2749.1,1.07071878]
[1763822467882,0.2756,2749.7,2749.1,4.70823883]
[1763822468606,0.2756,2749.7,2749.1,1.07071878]
[1763822468814,0.7694,2749.7,2749.0,0.001]
[1763822470225,0.4938,2749.6,2749.0,0.001]
[1763822470721,0.002,2749.7,2749.0,0.001]
[1763822470924,0.002,2749.7,2749.1,0.5602]
[1763822471432,0.124,2749.6,2749.1,0.5602]
[1763822472083,0.124,2749.6,2749.5,0.4675]
[1763822472381,0.002,2749.7,2749.5,0.4675]
[1763822472586,0.002,2749.7,2749.6,0.5675]
[1763822472815,0.002,2749.7,2749.6,4.20439263]
[1763822472997,0.002,2749.7,2749.6,5.13105189]
[1763822473810,0.002,2749.7,2749.6,0.92665926]
[1763822474015,0.002,2749.7,2749.6,5.03105189]
[1763822474216,0.002,2749.7,2749.0,0.38380947]
[1763822474381,0.002,2749.7,2749.0,3.73865804]
[1763822475280,0.002,2749.7,2749.1,0.4602]
[1763822475479,0.002,2749.7,2749.0,1.00799264]
[1763822475719,0.002,2749.7,2749.0,4.64566639]
[1763822475905,0.002,2749.7,2749.0,3.73867375]
[1763822476217,0.002,2749.7,2749.0,4.54137224]
[1763822476413,0.002,2749.7,2749.0,8.17905867]
[1763822477321,0.002,2749.7,2749.0,4.54137224]
[1763822477695,0.4961,2749.6,2749.0,0.001]
[1763822479411,0.4703,2749.1,2749.0,0.001]
[1763822479623,0.124,2749.3,2749.0,0.001]
[1763822480289,0.002,2749.7,2749.2,0.4675]
[1763822480617,0.124,2749.6,2749.2,0.4675]
[1763822481489,0.124,2749.6,2749.0,0.4612]
[1763822481490,0.4703,2749.3,2749.0,0.001]
[1763822483816,0.9664,2749.3,2749.0,0.001]
[1763822484421,0.4703,2749.3,2749.0,0.001]
[1763822484622,0.6201,2749.6,2749.0,0.001]
[1763822485424,0.4961,2749.6,2749.0,0.001]
[1763822485604,0.124,2749.5,2749.0,0.001]
[1763822485783,0.4961,2749.6,2749.0,0.001]
[1763822486136,0.124,2749.5,2749.0,0.92519511]
[1763822487535,0.002,2749.7,2749.4,0.4675]
[1763822487700,0.124,2749.6,2749.4,0.4675]
[1763822488503,0.124,2749.6,2749.1,0.4602]
[1763822488824,0.124,2749.6,2749.0,0.36499511]
[1763822488825,0.124,2749.6,2749.0,0.46499511]
[1763822489124,0.124,2749.6,2749.0,4.56287553]
[1763822489424,0.124,2749.6,2749.1,0.82006797]
[1763822489838,0.124,2749.6,2749.1,1.28026797]
[1763822490605,0.124,2749.6,2749.1,4.45749028]
[1763822490820,0.124,2749.6,2749.2,0.4602]
[1763822491055,0.002,2749.7,2749.5,0.4675]
[1763822491246,0.126,2749.7,2749.6,0.4675]
[1763822491701,0.5963,2749.7,2749.1,3.6375541]
[1763822491900,0.5963,2749.7,2749.1,4.41120892]
[1763822492619,0.5963,2749.7,2749.2,0.1]
[1763822492821,0.126,2749.7,2749.2,0.1]
[1763822493122,0.002,2749.7,2749.6,0.4675]
[1763822496740,0.002,2749.7,2749.4,3.63702824]
[1763822497359,0.002,2749.7,2749.4,4.18816605]
[1763822498152,0.002,2749.7,2749.4,0.55113781]
[1763822498751,0.002,2749.7,2749.3,3.73726647]
[1763822500522,0.002,2749.7,2749.3,3.63726647]
[1763822501458,0.002,2749.7,2749.3,4.21726647]
[1763822501621,0.002,2749.7,2749.3,7.85455596]
[1763822501952,0.002,2749.7,2749.6,0.5788]
[1763822502333,0.002,2749.7,2749.6,1.0588]
[1763822503657,0.4601,2749.7,2749.3,3.73723473]
[1763822503817,0.4601,2749.7,2749.3,4.47469824]
[1763822504354,0.4601,2749.7,2749.3,8.11198773]
[1763822504529,0.4601,2749.7,2749.6,0.4788]
[1763822504530,0.002,2749.7,2749.6,0.4788]
[1763822504735,0.002,2749.7,2749.6,0.5788]
[1763822505148,0.002,2749.7,2749.6,0.4788]
[1763822505539,0.002,2749.7,2749.6,0.5788]
[1763822506162,0.002,2749.7,2749.4,0.1]
[1763822506363,0.002,2749.7,2749.6,0.4788]
[1763822506567,0.002,2749.7,2749.6,0.5788]
[1763822506761,0.002,2749.7,2749.6,1.0588]
[1763822509065,0.002,2749.7,2749.6,4.69569263]
[1763822509268,0.002,2749.7,2749.6,4.59569263]
[1763822509574,0.002,2749.7,2749.6,5.29560814]
[1763822511573,0.002,2749.7,2749.6,5.33197706]
[1763822511764,0.002,2749.7,2749.6,5.29560814]
[1763822514575,0.002,2749.7,2749.6,6.20260078]
[1763822516776,0.002,2749.7,2749.6,10.44410478]
[1763822516972,0.002,2749.7,2749.6,6.20260078]
[1763822517769,0.002,2749.7,2749.6,5.72260078]
[1763822519497,0.4601,2749.7,2749.6,4.64388527]
[1763822519696,0.4601,2749.7,2749.6,4.54388527]
[1763822520668,0.4601,2749.7,2749.4,0.101]
[1763822520866,0.002,2749.7,2749.6,0.4788]
[1763822521065,0.002,2749.7,2749.6,0.5788]
[1763822522893,0.002,2749.7,2749.6,4.21569263]
[1763822523292,0.002,2749.7,2749.6,3.73689263]
[1763822523506,0.4601,2749.7,2749.6,3.73689263]
[1763822523804,0.4601,2749.7,2749.6,3.63689263]
[1763822524199,0.002,2749.7,2749.6,3.63689263]
[1763822524993,0.9336,2749.7,2749.4,0.001]
[1763822525194,0.4567,2749.5,2749.4,0.001]
[1763822526296,0.9097,2749.5,2749.4,0.001]
[1763822527606,0.126,2749.7,2749.4,0.5717]
[1763822527905,0.002,2749.7,2749.4,0.5717]
[1763822529505,0.002,2749.7,2749.4,4.20872842]
[1763822529702,0.002,2749.7,2749.4,8.63058556]
[1763822530102,0.4916,2749.7,2749.4,4.52283503]
[1763822530421,0.4916,2749.7,2749.4,3.73813508]
[1763822530779,0.002,2749.7,2749.4,3.73813508]
[1763822532511,0.4916,2749.7,2749.4,0.101]
[1763822532692,0.4916,2749.7,2749.4,3.73814497]
[1763822532899,0.4607,2749.5,2749.4,3.63814497]
[1763822533312,0.4916,2749.7,2749.4,0.001]
[1763822533517,0.4607,2749.5,2749.4,0.001]
[1763822535031,0.9503,2749.5,2749.4,0.001]
[1763822535617,0.002,2749.7,2749.4,0.5858]
[1763822535835,0.4607,2749.5,2749.4,0.101]
[1763822536611,0.9503,2749.5,2749.4,0.001]
[1763822538234,1.0743,2749.5,2749.4,0.001]
[1763822539035,1.62557632,2749.5,2749.4,0.001]
[1763822540308,1.62557632,2749.5,2749.3,0.001]
[1763822540504,0.7954,2749.4,2749.3,0.001]
[1763822541038,0.405504,2749.3,2749.1,0.001]
[1763822541248,0.864604,2749.2,2749.1,0.001]
[1763822541653,1.354204,2749.2,2749.1,0.001]
[1763822542529,0.405504,2749.0,2748.8,0.001]
[1763822542727,1.671304,2748.9,2748.8,0.001]
[1763822543137,1.81712947,2748.9,2748.8,0.001]
[1763822544234,1.69312947,2748.9,2748.8,0.001]
[1763822544434,1.81712947,2748.9,2748.8,0.001]
[1763822547264,1.96554168,2748.9,2748.8,0.001]
[1763822547566,2.08954168,2748.9,2748.8,0.001]
[1763822549232,0.5847,2748.9,2748.8,0.001]
[1763822549997,0.124,2748.9,2748.8,0.4858]
[1763822550145,0.82999517,2749.2,2748.8,0.4858]
[1763822550146,0.14579517,2749.2,2748.8,0.4858]
[1763822550348,0.124,2749.1,2748.8,1.0668]
[1763822550551,0.124,2749.1,2748.8,4.70473949]
[1763822550860,0.1966,2749.6,2749.0,0.4848]
[1763822551044,0.1966,2749.6,2749.5,0.4848]
[1763822551247,0.3206,2749.6,2749.5,0.6387]
[1763822551451,0.126,2749.6,2749.4,0.1]
[1763822551648,0.126,2749.6,2749.3,0.2539]
[1763822552052,0.126,2749.6,2749.5,0.4848]
[1763822553466,0.126,2749.6,2749.3,0.2539]
[1763822553686,0.126,2749.6,2749.3,0.69112792]
[1763822553894,0.126,2749.6,2749.3,0.59112792]
[1763822554773,0.126,2749.6,2749.3,4.2284132]
[1763822555097,0.002,2749.6,2749.5,0.4848]
[1763822555263,0.126,2749.6,2749.5,0.4848]
[1763822555659,0.5867,2749.6,2749.3,0.43722792]
[1763822555968,0.3177,2749.4,2748.9,0.47057395]
[1763822556173,0.4592,2749.3,2748.9,0.47057395]
[1763822556368,0.4592,2749.3,2748.8,0.001]
[1763822556568,0.4592,2749.3,2748.8,3.63893569]
[1763822556794,0.4592,2749.3,2748.8,0.001]
[1763822556968,0.4592,2749.3,2748.8,3.63895073]
[1763822557167,0.5914,2749.6,2748.9,0.4521]
[1763822557370,0.5914,2749.6,2748.8,3.73895073]
[1763822557371,0.4849,2748.9,2748.8,0.001]
[1763822557572,0.124,2748.9,2748.8,0.001]
[1763822557892,0.124,2748.9,2748.8,0.4883]
[1763822558257,0.14578348,2749.3,2748.8,4.1262452]
[1763822558460,0.124,2749.2,2748.8,4.5965452]
[1763822558656,0.124,2749.2,2748.8,0.9586]
[1763822558894,0.124,2749.1,2748.8,0.9586]
[1763822559104,0.124,2749.1,2748.8,0.4883]
[1763822560478,0.002,2749.0,2748.8,0.001]
[1763822564874,0.9468,2748.9,2748.8,0.001]
[1763822568622,1.352304,2748.9,2748.8,0.001]
[1763822572633,1.352304,2748.9,2748.7,0.001]
[1763822572634,15.02005264,2748.8,2748.7,0.001]
[1763822572933,17.86503226,2748.8,2748.7,0.001]
[1763822573331,11.08854726,2748.8,2748.7,0.001]
[1763822573533,18.18640826,2748.8,2748.7,0.001]
[1763822573927,11.08854726,2748.8,2748.7,0.001]
[1763822574638,16.29052826,2748.8,2748.7,0.001]
[1763822574799,20.04830288,2748.8,2748.5,0.001]
[1763822574999,12.07480864,2748.4,2746.9,0.4703]
[1763822575224,16.2558243,2748.4,2746.9,0.4703]
[1763822575442,9.22207256,2748.4,2747.4,0.4703]
[1763822575600,10.45350004,2748.4,2747.4,0.4703]
[1763822575997,10.45350004,2748.4,2747.1,0.4703]
[1763822576199,10.32950004,2748.4,2747.4,0.4703]
[1763822576424,7.20734174,2748.4,2747.1,7.28037707]
[1763822576620,7.20734174,2748.4,2747.5,0.4703]
[1763822577021,6.67783774,2748.4,2747.5,0.4703]
[1763822577235,3.04406312,2748.4,2747.6,0.4703]
[1763822577540,6.80183774,2748.4,2747.4,0.4703]
[1763822578810,3.04406312,2748.4,2747.7,0.4703]
[1763822579142,2.12185586,2748.4,2747.7,0.4703]
[1763822579343,2.12185586,2748.4,2747.7,0.4713]
[1763822580039,1.53215586,2748.4,2747.7,0.4713]
[1763822580242,2.12185586,2748.4,2747.7,0.4713]
[1763822580406,6.28513448,2748.4,2747.7,0.001]
[1763822582013,2.52735986,2748.4,2747.7,0.001]
[1763822582330,2.78009585,2748.4,2747.7,0.001]
[1763822582511,7.09489385,2748.4,2747.7,0.001]
[1763822583113,2.78009585,2748.4,2747.7,0.001]
[1763822583419,13.19906885,2748.4,2747.7,0.001]
[1763822584352,13.05493385,2748.4,2747.7,0.001]
[1763822585072,5.86113616,2748.4,2747.7,0.001]
[1763822585269,7.83148185,2748.4,2747.7,0.001]
[1763822585431,12.48641523,2748.4,2747.7,0.001]
[1763822585619,13.02036875,2748.4,2747.7,0.001]
[1763822585951,26.30143464,2748.3,2747.7,0.001]
[1763822586129,35.96492769,2748.3,2747.7,0.001]
[1763822586529,0.405504,2748.1,2747.7,0.001]
[1763822586727,30.6993248,2748.1,2747.7,0.001]
[1763822587057,9.2608484,2748.1,2747.7,0.001]
[1763822587227,8.36368964,2748.1,2747.7,0.001]
[1763822587426,17.45784515,2748.1,2747.7,0.001]
[1763822588159,17.18889409,2748.1,2747.7,0.001]
[1763822588470,28.93753109,2748.1,2747.7,0.001]
[1763822589233,10.36049809,2748.1,2747.7,0.001]
[1763822589430,9.76949809,2748.1,2747.7,0.001]
[1763822590353,17.73396809,2748.1,2747.7,0.001]
[1763822590549,16.55356709,2748.1,2747.7,0.001]
[1763822591061,22.95356709,2748.1,2747.7,0.001]
[1763822591483,25.50465409,2748.1,2747.7,0.001]
[1763822591847,21.35995409,2748.1,2747.7,0.001]
[1763822592279,5.46748645,2748.1,2748.0,0.48]
[1763822592580,3.85949,2748.1,2748.0,0.48]
[1763822592880,4.76648264,2748.1,2748.0,0.48]
[1763822593083,12.15034664,2748.1,2748.0,0.001]
[1763822593285,5.05904664,2748.1,2748.0,0.48]
[1763822593455,5.1509513,2748.1,2748.0,0.48]
[1763822593782,2.2895013,2748.1,2748.0,0.48]
[1763822593951,1.43649664,2748.1,2748.0,0.9511]
[1763822594147,1.31249664,2748.1,2748.0,0.9511]
[1763822594385,0.90699264,2748.1,2748.0,0.48]
[1763822594588,1.03099264,2748.1,2748.0,0.48]
[1763822594750,1.43649664,2748.1,2748.0,0.48]
[1763822594951,7.92782266,2748.1,2748.0,0.001]
[1763822595255,11.33819868,2748.1,2748.0,0.001]
[1763822595457,11.8958419,2748.1,2748.0,0.001]
[1763822595856,12.42979542,2748.1,2748.0,0.001]
[1763822596377,11.16408842,2748.1,2748.0,0.001]
[1763822596577,10.6301349,2748.1,2748.0,0.001]
[1763822597289,20.4540279,2748.1,2748.0,0.001]
[1763822597447,19.3337109,2748.1,2748.0,0.001]
[1763822597880,11.04680842,2748.1,2748.0,0.001]
[1763822598360,24.39259542,2748.1,2748.0,0.001]
[1763822599379,29.58445942,2748.1,2748.0,0.001]
[1763822600284,4.59552142,2748.1,2748.0,0.001]
[1763822600586,29.58445942,2748.1,2748.0,0.001]
[1763822602806,34.90791499,2748.1,2748.0,0.001]
[1763822603663,35.05383302,2748.1,2748.0,0.001]
[1763822605403,35.05383302,2748.1,2747.7,0.001]
[1763822605404,24.988938,2747.9,2747.7,0.001]
[1763822605607,27.76758218,2747.8,2747.7,0.001]
[1763822605906,28.3252254,2747.8,2747.7,0.001]
[1763822606077,28.95066366,2747.8,2747.7,0.001]
[1763822606414,28.79423436,2747.8,2747.7,0.001]
[1763822606614,25.44147136,2747.8,2747.7,0.001]
[1763822606782,29.34697363,2747.8,2747.7,0.001]
[1763822606986,29.47097363,2747.8,2747.7,0.001]
[1763822607616,34.24857763,2747.8,2747.7,0.001]
[1763822607981,34.24857763,2747.8,2747.4,0.001]
[1763822608337,30.81443691,2747.5,2747.4,0.001]
[1763822608541,31.27833093,2747.5,2747.4,0.001]
[1763822608686,31.75783093,2747.5,2747.4,0.001]
[1763822609119,32.78657415,2747.5,2747.4,0.001]
[1763822610302,33.32052767,2747.5,2747.4,0.001]
[1763822610618,12.02769582,2747.5,2747.4,0.001]
[1763822610795,33.32052767,2747.5,2747.4,0.001]
[1763822611314,0.405504,2747.2,2746.5,0.5707]
[1763822611622,1.31249664,2746.7,2746.5,0.5707]
[1763822611818,0.124,2746.6,2746.5,0.5707]
[1763822612189,0.124,2746.6,2746.5,1.0497]
[1763822617335,0.124,2746.6,2746.5,0.5786]
[1763822617920,0.124,2746.6,2746.5,1.0694]
[1763822619001,0.124,2746.6,2746.2,0.0996]
[1763822619201,0.124,2746.6,2746.5,0.4838]
[1763822619934,0.124,2746.6,2746.5,0.9737]
[1763822620129,0.124,2746.6,2746.5,0.4838]
[1763822620512,1.31249664,2746.5,2746.2,0.0996]
[1763822620702,0.64236989,2746.4,2746.2,0.0996]
[1763822621199,1.04787389,2746.4,2746.3,0.4838]
[1763822621423,1.51229922,2746.4,2745.8,0.1539]
[1763822621626,0.5895,2746.6,2746.3,0.5834]
[1763822621839,0.124,2746.5,2746.3,0.0996]
[1763822622043,0.124,2746.5,2746.4,0.4899]
[1763822622248,0.124,2746.5,2746.4,0.9737]
[1763822627519,0.124,2746.5,2746.4,0.4838]
[1763822630485,0.124,2746.5,2746.4,0.4848]
[1763822630649,0.124,2746.5,2746.4,0.9747]
[1763822631337,0.124,2746.5,2746.4,0.4848]
[1763822632639,0.124,2746.5,2746.4,0.9747]